[Event "Titled Tuesday Blitz November 29 Late 2022"]
[White "Yi, Richard"]
[Black "Todev, Simeon"]
[WhiteFideId "2079518"]
[BlackFideId "2925133"]
[WhiteElo "2147"]
[BlackElo "1938"]
[Result "1-0"]
[Round "01"]
[TimeControl "180+1"]
[Date "2022.11.30"]
[WhiteClock "0:00:55"]
[BlackClock "0:00:46"]

1. e4 {[%clk 0:02:59]}  c5 {[%clk 0:02:59]} 2. Nf3 {[%clk 0:02:59]}  Nc6 {[%clk 0:02:53]} 3. d4 {[%clk 0:02:59]}  cxd4 {[%clk 0:02:51]} 4. Nxd4 {[%clk 0:03:00]}  e5 {[%clk 0:02:50]} 5. Nb5 {[%clk 0:03:00]}  a6 {[%clk 0:02:44]} 6. Nd6+ {[%clk 0:02:57]}  Bxd6 {[%clk 0:02:43]} 7. Qxd6 {[%clk 0:02:58]}  Qf6 {[%clk 0:02:44]} 8. Qc7 {[%clk 0:02:44]}  Nge7 {[%clk 0:02:41]} 9. Nc3 {[%clk 0:02:41]}  O-O {[%clk 0:02:35]} 10. Be3 {[%clk 0:02:36]}  Qe6 {[%clk 0:02:22]} 11. O-O-O {[%clk 0:02:26]}  b5 {[%clk 0:02:19]} 12. Rd6 {[%clk 0:02:03]}  Qg4 {[%clk 0:01:55]} 13. h3 {[%clk 0:02:03]}  Qh5 {[%clk 0:01:40]} 14. Be2 {[%clk 0:02:02]}  Qg6 {[%clk 0:01:30]} 15. Rxg6 {[%clk 0:02:01]}  hxg6 {[%clk 0:01:25]} 16. Nd5 {[%clk 0:02:00]}  Nxd5 {[%clk 0:01:25]} 17. exd5 {[%clk 0:02:01]}  Nd4 {[%clk 0:01:25]} 18. Qxe5 {[%clk 0:01:47]}  Nxe2+ {[%clk 0:01:23]} 19. Kd2 {[%clk 0:01:48]}  d6 {[%clk 0:01:19]} 20. Qxd6 {[%clk 0:01:45]}  Bf5 {[%clk 0:01:16]} 21. Kxe2 {[%clk 0:01:42]}  Rad8 {[%clk 0:01:16]} 22. Qxa6 {[%clk 0:01:39]}  Rxd5 {[%clk 0:01:14]} 23. Rd1 {[%clk 0:01:34]}  Re5 {[%clk 0:01:05]} 24. Qd6 {[%clk 0:01:26]}  Rfe8 {[%clk 0:01:03]} 25. Rd5 {[%clk 0:01:16]}  Re4 {[%clk 0:01:01]} 26. Rxb5 {[%clk 0:01:10]}  R8e6 {[%clk 0:00:49]} 27. Rb8+ {[%clk 0:01:03]}  Kh7 {[%clk 0:00:48]} 28. Qd8 {[%clk 0:01:04]}  g5 {[%clk 0:00:46]} 29. Qh8+ {[%clk 0:00:54]}  Kg6 {[%clk 0:00:46]} 30. g4 {[%clk 0:00:55]} 1-0


[Site "https://www.chess.com"]

[Event "Titled Tuesday Blitz November 29 Late 2022"]
[White "Yoo, Christopher Woojin"]
[Black "Sadovsky, Artem"]
[WhiteFideId "30909694"]
[BlackFideId "4155840"]
[WhiteElo "2925"]
[BlackElo "2500"]
[Result "0-1"]
[Round "01"]
[TimeControl "180+1"]
[Date "2022.11.30"]
[WhiteClock "0:00:04"]
[BlackClock "0:00:21"]

1. c4 {[%clk 0:03:00]}  g6 {[%clk 0:02:59]} 2. g3 {[%clk 0:02:55]}  Bg7 {[%clk 0:03:00]} 3. Bg2 {[%clk 0:02:56]}  d6 {[%clk 0:02:57]} 4. Nc3 {[%clk 0:02:55]}  e5 {[%clk 0:02:57]} 5. e3 {[%clk 0:02:54]}  f5 {[%clk 0:02:57]} 6. Nge2 {[%clk 0:02:55]}  Nf6 {[%clk 0:02:57]} 7. O-O {[%clk 0:02:55]}  O-O {[%clk 0:02:57]} 8. d4 {[%clk 0:02:53]}  e4 {[%clk 0:02:54]} 9. f3 {[%clk 0:02:52]}  exf3 {[%clk 0:02:40]} 10. Bxf3 {[%clk 0:02:52]}  Qe7 {[%clk 0:02:40]} 11. Nf4 {[%clk 0:02:50]}  c6 {[%clk 0:02:38]} 12. Bd2 {[%clk 0:02:40]}  g5 {[%clk 0:02:38]} 13. Nd3 {[%clk 0:02:35]}  Ne4 {[%clk 0:02:33]} 14. Bxe4 {[%clk 0:02:34]}  fxe4 {[%clk 0:02:33]} 15. Rxf8+ {[%clk 0:02:35]}  Bxf8 {[%clk 0:02:32]} 16. Nf2 {[%clk 0:02:35]}  Bf5 {[%clk 0:02:30]} 17. Qb3 {[%clk 0:02:16]}  h5 {[%clk 0:02:06]} 18. Rf1 {[%clk 0:02:08]}  Bg6 {[%clk 0:02:05]} 19. Nfxe4 {[%clk 0:01:57]}  Bxe4 {[%clk 0:02:02]} 20. Nxe4 {[%clk 0:01:57]}  Qxe4 {[%clk 0:02:00]} 21. Qa3 {[%clk 0:01:57]}  c5 {[%clk 0:01:42]} 22. dxc5 {[%clk 0:01:45]}  Qxc4 {[%clk 0:01:37]} 23. cxd6 {[%clk 0:01:38]}  Nc6 {[%clk 0:01:30]} 24. Rf5 {[%clk 0:01:37]}  Bh6 {[%clk 0:01:17]} 25. d7 {[%clk 0:01:21]}  Qe6 {[%clk 0:01:09]} 26. Qd3 {[%clk 0:01:19]}  Rd8 {[%clk 0:01:05]} 27. Rd5 {[%clk 0:01:19]}  Ne5 {[%clk 0:00:59]} 28. Qe4 {[%clk 0:01:17]}  Bg7 {[%clk 0:00:54]} 29. Bc3 {[%clk 0:01:00]}  Rxd7 {[%clk 0:00:54]} 30. Rxe5 {[%clk 0:00:53]}  Bxe5 {[%clk 0:00:52]} 31. Qxe5 {[%clk 0:00:54]}  Qxe5 {[%clk 0:00:52]} 32. Bxe5 {[%clk 0:00:54]}  Rd2 {[%clk 0:00:45]} 33. Bd4 {[%clk 0:00:42]}  a6 {[%clk 0:00:42]} 34. h4 {[%clk 0:00:22]}  g4 {[%clk 0:00:41]} 35. Bc3 {[%clk 0:00:15]}  Rc2 {[%clk 0:00:39]} 36. Kf1 {[%clk 0:00:13]}  Kf7 {[%clk 0:00:39]} 37. e4 {[%clk 0:00:14]}  Ke6 {[%clk 0:00:38]} 38. a4 {[%clk 0:00:14]}  b5 {[%clk 0:00:37]} 39. a5 {[%clk 0:00:15]}  b4 {[%clk 0:00:36]} 40. Bxb4 {[%clk 0:00:14]}  Ke5 {[%clk 0:00:36]} 41. Be1 {[%clk 0:00:09]}  Kxe4 {[%clk 0:00:36]} 42. b3 {[%clk 0:00:05]}  Kf3 {[%clk 0:00:36]} 43. b4 {[%clk 0:00:06]}  Rc1 {[%clk 0:00:35]} 44. b5 {[%clk 0:00:05]}  axb5 {[%clk 0:00:36]} 45. a6 {[%clk 0:00:05]}  Ra1 {[%clk 0:00:36]} 46. a7 {[%clk 0:00:05]}  Rxa7 {[%clk 0:00:36]} 47. Bc3 {[%clk 0:00:05]}  b4 {[%clk 0:00:36]} 48. Bd4 {[%clk 0:00:05]}  b3 {[%clk 0:00:35]} 49. Ke1 {[%clk 0:00:04]}  Rd7 {[%clk 0:00:34]} 50. Bb2 {[%clk 0:00:04]}  Rd3 {[%clk 0:00:29]} 51. Bf6 {[%clk 0:00:04]}  Kxg3 {[%clk 0:00:28]} 52. Ke2 {[%clk 0:00:04]}  Rd5 {[%clk 0:00:26]} 53. Ke3 {[%clk 0:00:04]}  Rb5 {[%clk 0:00:25]} 54. Bb2 {[%clk 0:00:05]}  Rb7 {[%clk 0:00:25]} 55. Be5+ {[%clk 0:00:03]}  Kh3 {[%clk 0:00:23]} 56. Bb2 {[%clk 0:00:04]}  g3 {[%clk 0:00:21]} 57. Kf3 {[%clk 0:00:04]}  g2 {[%clk 0:00:21]} 0-1


[Site "https://www.chess.com"]

[Event "Titled Tuesday Blitz November 29 Late 2022"]
[White "Young, Ryan"]
[Black "Olafsson, Helgi"]
[WhiteFideId "2049945"]
[BlackFideId "2300010"]
[WhiteElo "2304"]
[BlackElo "2463"]
[Result "0-1"]
[Round "01"]
[TimeControl "180+1"]
[Date "2022.11.30"]
[WhiteClock "0:00:14"]
[BlackClock "0:00:05"]

1. e4 {[%clk 0:02:57]}  c5 {[%clk 0:02:59]} 2. c3 {[%clk 0:02:56]}  Nf6 {[%clk 0:02:56]} 3. e5 {[%clk 0:02:56]}  Nd5 {[%clk 0:02:56]} 4. Nf3 {[%clk 0:02:57]}  d6 {[%clk 0:02:54]} 5. Bc4 {[%clk 0:02:51]}  e6 {[%clk 0:02:53]} 6. d4 {[%clk 0:02:49]}  cxd4 {[%clk 0:02:51]} 7. cxd4 {[%clk 0:02:49]}  Nb6 {[%clk 0:02:51]} 8. Bd3 {[%clk 0:02:44]}  dxe5 {[%clk 0:02:47]} 9. dxe5 {[%clk 0:02:43]}  N8d7 {[%clk 0:02:47]} 10. O-O {[%clk 0:02:38]}  Nc5 {[%clk 0:02:46]} 11. Bb5+ {[%clk 0:02:35]}  Bd7 {[%clk 0:02:47]} 12. Bxd7+ {[%clk 0:02:34]}  Qxd7 {[%clk 0:02:46]} 13. Qe2 {[%clk 0:02:29]}  Qd3 {[%clk 0:02:45]} 14. Nc3 {[%clk 0:02:26]}  Qxe2 {[%clk 0:02:42]} 15. Nxe2 {[%clk 0:02:26]}  Be7 {[%clk 0:02:34]} 16. Rd1 {[%clk 0:02:12]}  O-O {[%clk 0:02:34]} 17. Be3 {[%clk 0:02:01]}  Nd5 {[%clk 0:02:31]} 18. Bd4 {[%clk 0:01:59]}  Rfd8 {[%clk 0:02:26]} 19. Rac1 {[%clk 0:01:58]}  b6 {[%clk 0:02:25]} 20. Ng3 {[%clk 0:01:48]}  Kf8 {[%clk 0:02:23]} 21. Bxc5 {[%clk 0:01:39]}  Bxc5 {[%clk 0:02:22]} 22. Ne4 {[%clk 0:01:38]}  Be7 {[%clk 0:02:22]} 23. Rc4 {[%clk 0:01:33]}  Rac8 {[%clk 0:02:19]} 24. Rcc1 {[%clk 0:01:24]}  Ke8 {[%clk 0:02:12]} 25. Kf1 {[%clk 0:01:23]}  h6 {[%clk 0:02:08]} 26. h3 {[%clk 0:01:21]}  g5 {[%clk 0:02:06]} 27. g3 {[%clk 0:01:19]}  Nb4 {[%clk 0:02:00]} 28. a3 {[%clk 0:01:11]}  Rxd1+ {[%clk 0:01:50]} 29. Rxd1 {[%clk 0:01:11]}  Nd5 {[%clk 0:01:50]} 30. Rd2 {[%clk 0:00:58]}  Rc4 {[%clk 0:01:49]} 31. Re2 {[%clk 0:00:47]}  b5 {[%clk 0:01:43]} 32. Kg2 {[%clk 0:00:47]}  a5 {[%clk 0:01:42]} 33. Kf1 {[%clk 0:00:19]}  b4 {[%clk 0:01:42]} 34. axb4 {[%clk 0:00:19]}  axb4 {[%clk 0:01:40]} 35. Ke1 {[%clk 0:00:19]}  Rc1+ {[%clk 0:01:36]} 36. Kd2 {[%clk 0:00:20]}  Rh1 {[%clk 0:01:35]} 37. Kc2 {[%clk 0:00:19]}  Rxh3 {[%clk 0:01:31]} 38. Kb3 {[%clk 0:00:19]}  Rh5 {[%clk 0:01:26]} 39. Ne1 {[%clk 0:00:18]}  g4 {[%clk 0:01:24]} 40. Nd3 {[%clk 0:00:18]}  Rf5 {[%clk 0:01:23]} 41. Nd2 {[%clk 0:00:16]}  h5 {[%clk 0:01:21]} 42. Kc4 {[%clk 0:00:16]}  h4 {[%clk 0:01:19]} 43. gxh4 {[%clk 0:00:16]}  Rh5 {[%clk 0:01:18]} 44. Re4 {[%clk 0:00:15]}  Rxh4 {[%clk 0:01:17]} 45. f3 {[%clk 0:00:15]}  g3 {[%clk 0:01:14]} 46. Rxh4 {[%clk 0:00:14]}  Bxh4 {[%clk 0:01:13]} 47. Ne1 {[%clk 0:00:13]}  Nf4 {[%clk 0:01:04]} 48. Ne4 {[%clk 0:00:04]}  g2 {[%clk 0:01:01]} 49. Nxg2 {[%clk 0:00:04]}  Nxg2 {[%clk 0:01:01]} 50. Kxb4 {[%clk 0:00:05]}  Ne1 {[%clk 0:00:59]} 51. f4 {[%clk 0:00:02]}  Nd3+ {[%clk 0:00:59]} 52. Kc4 {[%clk 0:00:02]}  Nxb2+ {[%clk 0:00:58]} 53. Kd4 {[%clk 0:00:02]}  Nd1 {[%clk 0:00:57]} 54. Nd6+ {[%clk 0:00:03]}  Kf8 {[%clk 0:00:56]} 55. Ke4 {[%clk 0:00:03]}  Nf2+ {[%clk 0:00:53]} 56. Kf3 {[%clk 0:00:04]}  Nd3 {[%clk 0:00:53]} 57. Ke4 {[%clk 0:00:03]}  Nc5+ {[%clk 0:00:53]} 58. Kf3 {[%clk 0:00:04]}  Be7 {[%clk 0:00:52]} 59. Nc4 {[%clk 0:00:04]}  Kg7 {[%clk 0:00:51]} 60. Kg4 {[%clk 0:00:04]}  Kg6 {[%clk 0:00:51]} 61. Ne3 {[%clk 0:00:04]}  Nd3 {[%clk 0:00:49]} 62. Ng2 {[%clk 0:00:04]}  Bd8 {[%clk 0:00:44]} 63. Ne3 {[%clk 0:00:04]}  Bb6 {[%clk 0:00:42]} 64. Ng2 {[%clk 0:00:04]}  Bf2 {[%clk 0:00:41]} 65. Kf3 {[%clk 0:00:03]}  Bc5 {[%clk 0:00:36]} 66. Kg4 {[%clk 0:00:04]}  Ba3 {[%clk 0:00:34]} 67. Nh4+ {[%clk 0:00:04]}  Kg7 {[%clk 0:00:33]} 68. f5 {[%clk 0:00:05]}  Nxe5+ {[%clk 0:00:32]} 69. Kf4 {[%clk 0:00:04]}  Bd6 {[%clk 0:00:28]} 70. fxe6 {[%clk 0:00:03]}  Ng6+ {[%clk 0:00:24]} 71. Kg5 {[%clk 0:00:03]}  Be7+ {[%clk 0:00:23]} 72. Kh5 {[%clk 0:00:02]}  Bxh4 {[%clk 0:00:19]} 73. exf7 {[%clk 0:00:03]}  Kxf7 {[%clk 0:00:20]} 74. Kg4 {[%clk 0:00:03]}  Kf6 {[%clk 0:00:20]} 75. Kf3 {[%clk 0:00:04]}  Kf5 {[%clk 0:00:19]} 76. Ke3 {[%clk 0:00:04]}  Bg5+ {[%clk 0:00:19]} 77. Kd3 {[%clk 0:00:05]}  Ke5 {[%clk 0:00:19]} 78. Kc4 {[%clk 0:00:06]}  Nf4 {[%clk 0:00:19]} 79. Kc5 {[%clk 0:00:07]}  Be7+ {[%clk 0:00:18]} 80. Kc4 {[%clk 0:00:08]}  Ke4 {[%clk 0:00:17]} 81. Kb5 {[%clk 0:00:08]}  Kd5 {[%clk 0:00:17]} 82. Kb6 {[%clk 0:00:08]}  Ne6 {[%clk 0:00:15]} 83. Kb5 {[%clk 0:00:09]}  Bc5 {[%clk 0:00:14]} 84. Ka4 {[%clk 0:00:09]}  Kc4 {[%clk 0:00:13]} 85. Ka5 {[%clk 0:00:09]}  Nc7 {[%clk 0:00:12]} 86. Ka4 {[%clk 0:00:09]}  Bb6 {[%clk 0:00:09]} 87. Ka3 {[%clk 0:00:09]}  Nd5 {[%clk 0:00:08]} 88. Ka4 {[%clk 0:00:09]}  Nb4 {[%clk 0:00:07]} 89. Ka3 {[%clk 0:00:09]}  Bc7 {[%clk 0:00:07]} 90. Ka4 {[%clk 0:00:10]}  Nd5 {[%clk 0:00:06]} 91. Ka3 {[%clk 0:00:10]}  Nf4 {[%clk 0:00:06]} 92. Ka4 {[%clk 0:00:11]}  Nd3 {[%clk 0:00:06]} 93. Ka3 {[%clk 0:00:12]}  Bb6 {[%clk 0:00:05]} 94. Ka4 {[%clk 0:00:12]}  Nb2+ {[%clk 0:00:05]} 95. Ka3 {[%clk 0:00:13]}  Kc3 {[%clk 0:00:05]} 96. Ka2 {[%clk 0:00:13]}  Kc2 {[%clk 0:00:06]} 97. Ka3 {[%clk 0:00:13]}  Bc5+ {[%clk 0:00:05]} 98. Ka2 {[%clk 0:00:13]}  Nd3 {[%clk 0:00:06]} 99. Ka1 {[%clk 0:00:13]}  Bb4 {[%clk 0:00:05]} 100. Ka2 {[%clk 0:00:14]}  Nc1+ {[%clk 0:00:05]} 101. Ka1 {[%clk 0:00:14]}  Bc3# {[%clk 0:00:05]} 0-1


[Site "https://www.chess.com"]

[Event "Titled Tuesday Blitz November 29 Late 2022"]
[White "Yurovskykh, Oleksandr"]
[Black "Fareh, Youness"]
[WhiteFideId "14134020"]
[BlackFideId "9000526"]
[WhiteElo "2265"]
[BlackElo "1849"]
[Result "1-0"]
[Round "01"]
[TimeControl "180+1"]
[Date "2022.11.30"]
[WhiteClock "0:01:39"]
[BlackClock "0:01:43"]

1. d4 {[%clk 0:02:51]}  Nf6 {[%clk 0:02:59]} 2. Nf3 {[%clk 0:02:48]}  c5 {[%clk 0:02:59]} 3. c3 {[%clk 0:02:41]}  d5 {[%clk 0:02:58]} 4. Bf4 {[%clk 0:02:40]}  Nc6 {[%clk 0:02:55]} 5. e3 {[%clk 0:02:40]}  e6 {[%clk 0:02:54]} 6. Nbd2 {[%clk 0:02:39]}  cxd4 {[%clk 0:02:55]} 7. exd4 {[%clk 0:02:38]}  Be7 {[%clk 0:02:56]} 8. Bd3 {[%clk 0:02:37]}  O-O {[%clk 0:02:56]} 9. O-O {[%clk 0:02:37]}  Nh5 {[%clk 0:02:52]} 10. Be3 {[%clk 0:02:34]}  f5 {[%clk 0:02:48]} 11. Ne5 {[%clk 0:02:28]}  Nf6 {[%clk 0:02:43]} 12. Bf4 {[%clk 0:02:22]}  Ne4 {[%clk 0:02:36]} 13. f3 {[%clk 0:02:11]}  Bg5 {[%clk 0:02:10]} 14. fxe4 {[%clk 0:02:00]}  fxe4 {[%clk 0:01:59]} 15. Nxc6 {[%clk 0:01:53]}  bxc6 {[%clk 0:01:56]} 16. Bxg5 {[%clk 0:01:52]}  Qxg5 {[%clk 0:01:54]} 17. Rxf8+ {[%clk 0:01:41]}  Kxf8 {[%clk 0:01:54]} 18. Be2 {[%clk 0:01:41]}  Bd7 {[%clk 0:01:44]} 19. Nf1 {[%clk 0:01:40]}  Kg8 {[%clk 0:01:43]} 20. Qd2 {[%clk 0:01:40]}  Rf8 {[%clk 0:01:43]} 21. Qxg5 {[%clk 0:01:39]} 1-0


[Site "https://www.chess.com"]

[Event "Titled Tuesday Blitz November 29 Late 2022"]
[White "Zhang, Derek"]
[Black "Svane, Frederik"]
[WhiteFideId "2087871"]
[BlackFideId "12923044"]
[WhiteElo "2506"]
[BlackElo "2963"]
[Result "1/2-1/2"]
[Round "01"]
[TimeControl "180+1"]
[Date "2022.11.30"]
[WhiteClock "0:00:07"]
[BlackClock "0:00:08"]

1. Nf3 {[%clk 0:03:00]}  Nf6 {[%clk 0:02:59]} 2. c4 {[%clk 0:03:01]}  e6 {[%clk 0:03:00]} 3. e3 {[%clk 0:03:02]}  d5 {[%clk 0:03:00]} 4. Nc3 {[%clk 0:03:02]}  Bd6 {[%clk 0:03:00]} 5. b3 {[%clk 0:03:02]}  O-O {[%clk 0:03:00]} 6. Bb2 {[%clk 0:03:02]}  c5 {[%clk 0:03:01]} 7. cxd5 {[%clk 0:03:02]}  exd5 {[%clk 0:03:02]} 8. d4 {[%clk 0:03:03]}  cxd4 {[%clk 0:03:02]} 9. Nxd4 {[%clk 0:03:02]}  Nc6 {[%clk 0:03:02]} 10. Be2 {[%clk 0:03:00]}  Re8 {[%clk 0:03:03]} 11. O-O {[%clk 0:02:59]}  Nxd4 {[%clk 0:03:03]} 12. Qxd4 {[%clk 0:02:59]}  Be5 {[%clk 0:03:04]} 13. Qd2 {[%clk 0:02:57]}  Be6 {[%clk 0:03:03]} 14. Bf3 {[%clk 0:02:55]}  Rc8 {[%clk 0:02:58]} 15. Nb5 {[%clk 0:02:49]}  Bxb2 {[%clk 0:02:52]} 16. Qxb2 {[%clk 0:02:49]}  Qb6 {[%clk 0:02:45]} 17. Nd4 {[%clk 0:02:49]}  Bg4 {[%clk 0:02:45]} 18. Bxg4 {[%clk 0:02:44]}  Nxg4 {[%clk 0:02:46]} 19. Rac1 {[%clk 0:02:39]}  Qd6 {[%clk 0:02:46]} 20. Nf3 {[%clk 0:02:23]}  h6 {[%clk 0:02:46]} 21. h3 {[%clk 0:02:11]}  Nf6 {[%clk 0:02:46]} 22. Rfd1 {[%clk 0:02:10]}  Ne4 {[%clk 0:02:30]} 23. Qd4 {[%clk 0:02:08]}  a5 {[%clk 0:02:19]} 24. Rxc8 {[%clk 0:01:45]}  Rxc8 {[%clk 0:02:20]} 25. Qxd5 {[%clk 0:01:46]}  Qxd5 {[%clk 0:02:16]} 26. Rxd5 {[%clk 0:01:46]}  Rc1+ {[%clk 0:02:15]} 27. Kh2 {[%clk 0:01:46]}  Nxf2 {[%clk 0:02:15]} 28. Rxa5 {[%clk 0:01:46]}  g5 {[%clk 0:01:55]} 29. Rb5 {[%clk 0:01:36]}  Kg7 {[%clk 0:01:47]} 30. Rxb7 {[%clk 0:01:29]}  Rh1+ {[%clk 0:00:37]} 31. Kg3 {[%clk 0:01:29]}  Ne4+ {[%clk 0:00:37]} 32. Kg4 {[%clk 0:01:28]}  Ra1 {[%clk 0:00:38]} 33. Ne5 {[%clk 0:01:04]}  Rf1 {[%clk 0:00:33]} 34. h4 {[%clk 0:00:37]}  Nf6+ {[%clk 0:00:20]} 35. Kg3 {[%clk 0:00:36]}  Ne4+ {[%clk 0:00:20]} 36. Kg4 {[%clk 0:00:24]}  Nf6+ {[%clk 0:00:20]} 37. Kh3 {[%clk 0:00:24]}  Rh1+ {[%clk 0:00:11]} 38. Kg3 {[%clk 0:00:24]}  gxh4+ {[%clk 0:00:12]} 39. Kf3 {[%clk 0:00:22]}  Rf1+ {[%clk 0:00:05]} 40. Ke2 {[%clk 0:00:22]}  Rf5 {[%clk 0:00:05]} 41. Nxf7 {[%clk 0:00:21]}  Rd5 {[%clk 0:00:03]} 42. Ne5+ {[%clk 0:00:18]}  Kg8 {[%clk 0:00:04]} 43. Nf3 {[%clk 0:00:18]}  Ne4 {[%clk 0:00:04]} 44. a4 {[%clk 0:00:15]}  Nc3+ {[%clk 0:00:04]} 45. Kf2 {[%clk 0:00:15]}  Ne4+ {[%clk 0:00:05]} 46. Kg1 {[%clk 0:00:13]}  Rd1+ {[%clk 0:00:04]} 47. Kh2 {[%clk 0:00:13]}  Nf2 {[%clk 0:00:04]} 48. g3 {[%clk 0:00:11]}  Ng4+ {[%clk 0:00:03]} 49. Kh3 {[%clk 0:00:11]}  Nxe3 {[%clk 0:00:04]} 50. gxh4 {[%clk 0:00:10]}  Rd3 {[%clk 0:00:04]} 51. Kg3 {[%clk 0:00:10]}  Nc2 {[%clk 0:00:04]} 52. Kf4 {[%clk 0:00:10]}  Na1 {[%clk 0:00:04]} 53. b4 {[%clk 0:00:09]}  Ra3 {[%clk 0:00:05]} 54. a5 {[%clk 0:00:10]}  Nc2 {[%clk 0:00:05]} 55. Rb6 {[%clk 0:00:08]}  Ra4 {[%clk 0:00:06]} 56. a6 {[%clk 0:00:07]}  Nxb4 {[%clk 0:00:06]} 57. Kf5 {[%clk 0:00:06]}  Nxa6 {[%clk 0:00:07]} 58. Ne5 {[%clk 0:00:06]}  Nc5 {[%clk 0:00:05]} 59. Kg6 {[%clk 0:00:06]}  Ra6 {[%clk 0:00:05]} 60. Rxa6 {[%clk 0:00:06]}  Nxa6 {[%clk 0:00:06]} 61. Kxh6 {[%clk 0:00:06]}  Nc5 {[%clk 0:00:06]} 62. Kg6 {[%clk 0:00:06]}  Ne6 {[%clk 0:00:07]} 63. h5 {[%clk 0:00:06]}  Nf4+ {[%clk 0:00:07]} 64. Kg5 {[%clk 0:00:07]}  Nxh5 {[%clk 0:00:08]} 1/2-1/2


[Site "https://www.chess.com"]

[Event "Titled Tuesday Blitz November 29 Late 2022"]
[White "Abasov, Nijat"]
[Black "Yi, Richard"]
[WhiteFideId "13402960"]
[BlackFideId "2079518"]
[WhiteElo "2546"]
[BlackElo "2147"]
[Result "1-0"]
[Round "02"]
[TimeControl "180+1"]
[Date "2022.11.30"]
[WhiteClock "0:00:17"]
[BlackClock "0:00:05"]

1. d4 {[%clk 0:03:00]}  Nf6 {[%clk 0:02:59]} 2. Nf3 {[%clk 0:03:01]}  d5 {[%clk 0:02:59]} 3. Bf4 {[%clk 0:03:01]}  c5 {[%clk 0:02:55]} 4. e3 {[%clk 0:03:00]}  cxd4 {[%clk 0:02:54]} 5. exd4 {[%clk 0:02:59]}  Nc6 {[%clk 0:02:55]} 6. c3 {[%clk 0:02:56]}  Bf5 {[%clk 0:02:54]} 7. Qb3 {[%clk 0:02:50]}  Qc8 {[%clk 0:02:53]} 8. h3 {[%clk 0:02:49]}  e6 {[%clk 0:02:53]} 9. Nbd2 {[%clk 0:02:49]}  Be7 {[%clk 0:02:52]} 10. Nh4 {[%clk 0:02:47]}  Bg6 {[%clk 0:02:52]} 11. Nxg6 {[%clk 0:02:46]}  hxg6 {[%clk 0:02:53]} 12. Bd3 {[%clk 0:02:46]}  a6 {[%clk 0:02:53]} 13. a4 {[%clk 0:02:45]}  O-O {[%clk 0:02:49]} 14. O-O {[%clk 0:02:44]}  Na5 {[%clk 0:02:45]} 15. Qd1 {[%clk 0:02:37]}  Qc6 {[%clk 0:02:39]} 16. Qe2 {[%clk 0:02:35]}  Rfc8 {[%clk 0:02:36]} 17. Rfe1 {[%clk 0:02:31]}  Nc4 {[%clk 0:02:35]} 18. Nxc4 {[%clk 0:02:23]}  dxc4 {[%clk 0:02:36]} 19. Bc2 {[%clk 0:02:24]}  b5 {[%clk 0:02:35]} 20. axb5 {[%clk 0:02:23]}  axb5 {[%clk 0:02:35]} 21. Be5 {[%clk 0:02:23]}  Rxa1 {[%clk 0:02:28]} 22. Rxa1 {[%clk 0:02:24]}  Ra8 {[%clk 0:02:28]} 23. Qe1 {[%clk 0:02:21]}  b4 {[%clk 0:02:21]} 24. Rxa8+ {[%clk 0:01:14]}  Qxa8 {[%clk 0:02:22]} 25. cxb4 {[%clk 0:01:15]}  Qb7 {[%clk 0:02:14]} 26. Qa1 {[%clk 0:01:10]}  Nd5 {[%clk 0:02:06]} 27. Be4 {[%clk 0:01:03]}  Bxb4 {[%clk 0:02:00]} 28. Qa4 {[%clk 0:01:02]}  Be1 {[%clk 0:00:57]} 29. Qe8+ {[%clk 0:00:22]}  Kh7 {[%clk 0:00:55]} 30. Qf8 {[%clk 0:00:22]}  f6 {[%clk 0:00:49]} 31. Qe8 {[%clk 0:00:21]}  f5 {[%clk 0:00:29]} 32. Bf3 {[%clk 0:00:19]}  Bb4 {[%clk 0:00:11]} 33. Qxe6 {[%clk 0:00:19]}  Nc7 {[%clk 0:00:05]} 34. Qf7 {[%clk 0:00:17]} 1-0


[Site "https://www.chess.com"]

[Event "Titled Tuesday Blitz November 29 Late 2022"]
[White "Adla, Diego"]
[Black "Leebit02"]
[WhiteFideId "100072"]
[WhiteElo "2377"]
[BlackElo "2317"]
[Result "1-0"]
[Round "02"]
[TimeControl "180+1"]
[Date "2022.11.30"]
[WhiteClock "0:00:19"]
[BlackClock "0:00:12"]

1. Nf3 {[%clk 0:03:00]}  Nf6 {[%clk 0:02:58]} 2. g3 {[%clk 0:03:00]}  d5 {[%clk 0:02:56]} 3. c4 {[%clk 0:02:59]}  e6 {[%clk 0:02:56]} 4. Bg2 {[%clk 0:02:57]}  Be7 {[%clk 0:02:53]} 5. O-O {[%clk 0:02:57]}  O-O {[%clk 0:02:54]} 6. d4 {[%clk 0:02:57]}  dxc4 {[%clk 0:02:54]} 7. Na3 {[%clk 0:02:57]}  Bxa3 {[%clk 0:02:46]} 8. bxa3 {[%clk 0:02:57]}  b6 {[%clk 0:02:32]} 9. Ne5 {[%clk 0:02:52]}  Nd5 {[%clk 0:02:32]} 10. Nxc4 {[%clk 0:02:52]}  Ba6 {[%clk 0:02:18]} 11. Qc2 {[%clk 0:02:46]}  Nd7 {[%clk 0:02:03]} 12. Rd1 {[%clk 0:02:40]}  Rc8 {[%clk 0:01:54]} 13. e4 {[%clk 0:02:36]}  Ne7 {[%clk 0:01:49]} 14. Bb2 {[%clk 0:02:36]}  Bb7 {[%clk 0:01:41]} 15. d5 {[%clk 0:02:31]}  exd5 {[%clk 0:01:39]} 16. exd5 {[%clk 0:02:31]}  Ng6 {[%clk 0:01:36]} 17. h4 {[%clk 0:02:20]}  Nf6 {[%clk 0:01:32]} 18. Rac1 {[%clk 0:02:11]}  Re8 {[%clk 0:01:26]} 19. Ne3 {[%clk 0:02:10]}  Ne5 {[%clk 0:01:21]} 20. Rd2 {[%clk 0:01:52]}  Qd7 {[%clk 0:01:15]} 21. Rcd1 {[%clk 0:01:41]}  h5 {[%clk 0:01:13]} 22. Qf5 {[%clk 0:01:40]}  Qxf5 {[%clk 0:00:54]} 23. Nxf5 {[%clk 0:01:40]}  Rcd8 {[%clk 0:00:52]} 24. Ne3 {[%clk 0:01:32]}  g6 {[%clk 0:00:40]} 25. a4 {[%clk 0:01:25]}  Nfd7 {[%clk 0:00:40]} 26. a5 {[%clk 0:01:15]}  Nc5 {[%clk 0:00:39]} 27. Ba3 {[%clk 0:01:08]}  Ned7 {[%clk 0:00:35]} 28. d6 {[%clk 0:01:01]}  Bxg2 {[%clk 0:00:31]} 29. dxc7 {[%clk 0:00:57]}  Rc8 {[%clk 0:00:32]} 30. Kxg2 {[%clk 0:00:53]}  Rxc7 {[%clk 0:00:31]} 31. Nd5 {[%clk 0:00:48]}  Rc6 {[%clk 0:00:30]} 32. axb6 {[%clk 0:00:48]}  axb6 {[%clk 0:00:30]} 33. Bb2 {[%clk 0:00:45]}  Kh7 {[%clk 0:00:18]} 34. Nf4 {[%clk 0:00:41]}  Re7 {[%clk 0:00:16]} 35. Rc2 {[%clk 0:00:38]}  Ne5 {[%clk 0:00:16]} 36. Nd5 {[%clk 0:00:37]}  Ree6 {[%clk 0:00:15]} 37. Nb4 {[%clk 0:00:36]}  Rc8 {[%clk 0:00:14]} 38. Re1 {[%clk 0:00:35]}  Rce8 {[%clk 0:00:14]} 39. Rce2 {[%clk 0:00:35]}  Ned3 {[%clk 0:00:13]} 40. Rxe6 {[%clk 0:00:34]}  Rxe6 {[%clk 0:00:14]} 41. Rxe6 {[%clk 0:00:34]}  fxe6 {[%clk 0:00:14]} 42. Nxd3 {[%clk 0:00:34]}  Nxd3 {[%clk 0:00:15]} 43. Bd4 {[%clk 0:00:34]}  Nb4 {[%clk 0:00:15]} 44. a3 {[%clk 0:00:33]}  Nd5 {[%clk 0:00:15]} 45. Kf3 {[%clk 0:00:33]}  Kg8 {[%clk 0:00:16]} 46. Ke4 {[%clk 0:00:33]}  Kf7 {[%clk 0:00:16]} 47. Ke5 {[%clk 0:00:33]}  Ke7 {[%clk 0:00:17]} 48. f3 {[%clk 0:00:30]}  Kd7 {[%clk 0:00:18]} 49. g4 {[%clk 0:00:31]}  Ke7 {[%clk 0:00:15]} 50. Bf2 {[%clk 0:00:27]}  hxg4 {[%clk 0:00:15]} 51. fxg4 {[%clk 0:00:27]}  Nc3 {[%clk 0:00:15]} 52. Bxb6 {[%clk 0:00:25]}  Nd5 {[%clk 0:00:14]} 53. Bc5+ {[%clk 0:00:25]}  Kd7 {[%clk 0:00:15]} 54. h5 {[%clk 0:00:24]}  gxh5 {[%clk 0:00:14]} 55. gxh5 {[%clk 0:00:25]}  Ke8 {[%clk 0:00:14]} 56. a4 {[%clk 0:00:23]}  Kf7 {[%clk 0:00:14]} 57. a5 {[%clk 0:00:22]}  Nc7 {[%clk 0:00:15]} 58. Bb6 {[%clk 0:00:22]}  Na6 {[%clk 0:00:15]} 59. Kd6 {[%clk 0:00:21]}  Kg7 {[%clk 0:00:15]} 60. Be3 {[%clk 0:00:20]}  Kf6 {[%clk 0:00:15]} 61. Kc6 {[%clk 0:00:20]}  e5 {[%clk 0:00:11]} 62. Kb7 {[%clk 0:00:20]}  Nb4 {[%clk 0:00:12]} 63. h6 {[%clk 0:00:20]}  Kg6 {[%clk 0:00:12]} 64. Bd2 {[%clk 0:00:19]} 1-0


[Site "https://www.chess.com"]